{"text_format":"1","workbook":"xlsx","n_sheets":30,"sheets":["Liste","MOI.01.ENTML.025","MOI.01.ENTML.060","MOI.01.ENTML.068","MOI.01.ENTML.070","MOI.01.ENTML.073","MOI.01.ENTML.075","MOI.01.ENTML.079","MOI.01.ENTML.080","MOI.01.ENTML.082","MOI.01.ENTML.099","MOI.01.ENTML.107","MOI.01.ENTML.119","MOI.01.ENTML.124","MOI.01.PREV.L002","MOI.01.PREV.L003","MOI.01.PREV.L005","MOI.01.PREV.L006","MOI.01.PREV.L007","MOI.01.PREV.L008","MOI.01.PREV.L009","MOI.01.PREV.L010","MOI.01.PREV.L012","MOI.01.PREV.L013","MOI.01.PREV.L014","MOI.01.PREV.L015","MOI.01.PREV.L016","MOI.01.PREV.L017","MOI.01.PREV.L018","MOI.01.PREV.L019"],"not_rendered":{"charts":0,"images":0,"macros":1,"external_links":0,"defined_names":0,"comments":0,"pivot_tables":0},"unopened":[],"bounds":{"document_bytes":16777216,"sheet_cells":100000,"rows_first":2000,"rows_last":500,"rows_between":2000,"halvings":0,"cell_chars":16384,"cell_head_chars":4096},"cells_cut":0,"cells_raw":0,"read":"whole","date_system":"1900"}

{"sheet":"Liste","index":0,"n_rows":36,"n_cols":2,"rows_kept":36,"cut":false,"hidden":false,"merged":[]}
[]
[]
[]
[]
[null,"Liste"]
[null,"Liste personnel ENTML"]
[null,"MOI.01.ENTML.025"]
[null,"MOI.01.ENTML.060"]
[null,"MOI.01.ENTML.068"]
[null,"MOI.01.ENTML.070"]
[null,"MOI.01.ENTML.073"]
[null,"MOI.01.ENTML.075"]
[null,"MOI.01.ENTML.079"]
[null,"MOI.01.ENTML.080"]
[null,"MOI.01.ENTML.082"]
[null,"MOI.01.ENTML.099"]
[null,"MOI.01.ENTML.107"]
[null,"MOI.01.ENTML.119"]
[null,"MOI.01.ENTML.124"]
[null,"MOI.01.PREV.L002"]
[null,"MOI.01.PREV.L003"]
[null,"MOI.01.PREV.L005"]
[null,"MOI.01.PREV.L006"]
[null,"MOI.01.PREV.L007"]
[null,"MOI.01.PREV.L008"]
[null,"MOI.01.PREV.L009"]
[null,"MOI.01.PREV.L010"]
[null,"MOI.01.PREV.L012"]
[null,"MOI.01.PREV.L013"]
[null,"MOI.01.PREV.L014"]
[null,"MOI.01.PREV.L015"]
[null,"MOI.01.PREV.L016"]
[null,"MOI.01.PREV.L017"]
[null,"MOI.01.PREV.L018"]
[null,"MOI.01.PREV.L019"]
[null,"MOI.01.PREV.L019"]

{"sheet":"MOI.01.ENTML.025","index":1,"n_rows":5,"n_cols":6,"rows_kept":5,"cut":false,"hidden":false,"merged":[[2,1,2,5]]}
[]
[]
[null,{"$f":"RIGHT(CELL(\"nomfichier\",A1),16)","v":"MOI.01.ENTML.025"}]
[]
[null,"Matricule","Nom","Prénom","Formé","AQA "]

{"sheet":"MOI.01.ENTML.060","index":2,"n_rows":5,"n_cols":6,"rows_kept":5,"cut":false,"hidden":false,"merged":[[2,1,2,5]]}
[]
[]
[null,{"$f":"RIGHT(CELL(\"nomfichier\",A1),16)","v":"MOI.01.ENTML.060"}]
[]
[null,"Matricule","Nom","Prénom","Formé","AQA "]

{"sheet":"MOI.01.ENTML.068","index":3,"n_rows":5,"n_cols":6,"rows_kept":5,"cut":false,"hidden":false,"merged":[[2,1,2,5]]}
[]
[]
[null,{"$f":"RIGHT(CELL(\"nomfichier\",A1),16)","v":"MOI.01.ENTML.068"}]
[]
[null,"Matricule","Nom","Prénom","Formé","AQA "]

{"sheet":"MOI.01.ENTML.070","index":4,"n_rows":5,"n_cols":6,"rows_kept":5,"cut":false,"hidden":false,"merged":[[2,1,2,5]]}
[]
[]
[null,{"$f":"RIGHT(CELL(\"nomfichier\",A1),16)","v":"MOI.01.ENTML.070"}]
[]
[null,"Matricule","Nom","Prénom","Formé","AQA "]

{"sheet":"MOI.01.ENTML.073","index":5,"n_rows":5,"n_cols":6,"rows_kept":5,"cut":false,"hidden":false,"merged":[[2,1,2,5]]}
[]
[]
[null,{"$f":"RIGHT(CELL(\"nomfichier\",A1),16)","v":"MOI.01.ENTML.073"}]
[]
[null,"Matricule","Nom","Prénom","Formé","AQA "]

{"sheet":"MOI.01.ENTML.075","index":6,"n_rows":5,"n_cols":6,"rows_kept":5,"cut":false,"hidden":false,"merged":[[2,1,2,5]]}
[]
[]
[null,{"$f":"RIGHT(CELL(\"nomfichier\",A1),16)","v":"MOI.01.ENTML.075"}]
[]
[null,"Matricule","Nom","Prénom","Formé","AQA "]

{"sheet":"MOI.01.ENTML.079","index":7,"n_rows":5,"n_cols":6,"rows_kept":5,"cut":false,"hidden":false,"merged":[[2,1,2,5]]}
[]
[]
[null,{"$f":"RIGHT(CELL(\"nomfichier\",A1),16)","v":"MOI.01.ENTML.079"}]
[]
[null,"Matricule","Nom","Prénom","Formé","AQA "]

{"sheet":"MOI.01.ENTML.080","index":8,"n_rows":5,"n_cols":6,"rows_kept":5,"cut":false,"hidden":false,"merged":[[2,1,2,5]]}
[]
[]
[null,{"$f":"RIGHT(CELL(\"nomfichier\",A1),16)","v":"MOI.01.ENTML.080"}]
[]
[null,"Matricule","Nom","Prénom","Formé","AQA "]

{"sheet":"MOI.01.ENTML.082","index":9,"n_rows":5,"n_cols":6,"rows_kept":5,"cut":false,"hidden":false,"merged":[[2,1,2,5]]}
[]
[]
[null,{"$f":"RIGHT(CELL(\"nomfichier\",A1),16)","v":"MOI.01.ENTML.082"}]
[]
[null,"Matricule","Nom","Prénom","Formé","AQA "]

{"sheet":"MOI.01.ENTML.099","index":10,"n_rows":5,"n_cols":6,"rows_kept":5,"cut":false,"hidden":false,"merged":[[2,1,2,5]]}
[]
[]
[null,{"$f":"RIGHT(CELL(\"nomfichier\",A1),16)","v":"MOI.01.ENTML.099"}]
[]
[null,"Matricule","Nom","Prénom","Formé","AQA "]

{"sheet":"MOI.01.ENTML.107","index":11,"n_rows":5,"n_cols":6,"rows_kept":5,"cut":false,"hidden":false,"merged":[[2,1,2,5]]}
[]
[]
[null,{"$f":"RIGHT(CELL(\"nomfichier\",A1),16)","v":"MOI.01.ENTML.107"}]
[]
[null,"Matricule","Nom","Prénom","Formé","AQA "]

{"sheet":"MOI.01.ENTML.119","index":12,"n_rows":5,"n_cols":6,"rows_kept":5,"cut":false,"hidden":false,"merged":[[2,1,2,5]]}
[]
[]
[null,{"$f":"RIGHT(CELL(\"nomfichier\",A1),16)","v":"MOI.01.ENTML.119"}]
[]
[null,"Matricule","Nom","Prénom","Formé","AQA "]

{"sheet":"MOI.01.ENTML.124","index":13,"n_rows":5,"n_cols":6,"rows_kept":5,"cut":false,"hidden":false,"merged":[[2,1,2,5]]}
[]
[]
[null,{"$f":"RIGHT(CELL(\"nomfichier\",A1),16)","v":"MOI.01.ENTML.124"}]
[]
[null,"Matricule","Nom","Prénom","Formé","AQA "]

{"sheet":"MOI.01.PREV.L002","index":14,"n_rows":5,"n_cols":6,"rows_kept":5,"cut":false,"hidden":false,"merged":[[2,1,2,5]]}
[]
[]
[null,{"$f":"RIGHT(CELL(\"nomfichier\",A1),16)","v":"MOI.01.PREV.L002"}]
[]
[null,"Matricule","Nom","Prénom","Formé","AQA "]

{"sheet":"MOI.01.PREV.L003","index":15,"n_rows":5,"n_cols":6,"rows_kept":5,"cut":false,"hidden":false,"merged":[[2,1,2,5]]}
[]
[]
[null,{"$f":"RIGHT(CELL(\"nomfichier\",A1),16)","v":"MOI.01.PREV.L003"}]
[]
[null,"Matricule","Nom","Prénom","Formé","AQA "]

{"sheet":"MOI.01.PREV.L005","index":16,"n_rows":5,"n_cols":6,"rows_kept":5,"cut":false,"hidden":false,"merged":[[2,1,2,5]]}
[]
[]
[null,{"$f":"RIGHT(CELL(\"nomfichier\",A1),16)","v":"MOI.01.PREV.L005"}]
[]
[null,"Matricule","Nom","Prénom","Formé","AQA "]

{"sheet":"MOI.01.PREV.L006","index":17,"n_rows":5,"n_cols":6,"rows_kept":5,"cut":false,"hidden":false,"merged":[[2,1,2,5]]}
[]
[]
[null,{"$f":"RIGHT(CELL(\"nomfichier\",A1),16)","v":"MOI.01.PREV.L006"}]
[]
[null,"Matricule","Nom","Prénom","Formé","AQA "]

{"sheet":"MOI.01.PREV.L007","index":18,"n_rows":5,"n_cols":6,"rows_kept":5,"cut":false,"hidden":false,"merged":[[2,1,2,5]]}
[]
[]
[null,{"$f":"RIGHT(CELL(\"nomfichier\",A1),16)","v":"MOI.01.PREV.L007"}]
[]
[null,"Matricule","Nom","Prénom","Formé","AQA "]

{"sheet":"MOI.01.PREV.L008","index":19,"n_rows":5,"n_cols":6,"rows_kept":5,"cut":false,"hidden":false,"merged":[[2,1,2,5]]}
[]
[]
[null,{"$f":"RIGHT(CELL(\"nomfichier\",A1),16)","v":"MOI.01.PREV.L008"}]
[]
[null,"Matricule","Nom","Prénom","Formé","AQA "]

{"sheet":"MOI.01.PREV.L009","index":20,"n_rows":5,"n_cols":6,"rows_kept":5,"cut":false,"hidden":false,"merged":[[2,1,2,5]]}
[]
[]
[null,{"$f":"RIGHT(CELL(\"nomfichier\",A1),16)","v":"MOI.01.PREV.L009"}]
[]
[null,"Matricule","Nom","Prénom","Formé","AQA "]

{"sheet":"MOI.01.PREV.L010","index":21,"n_rows":5,"n_cols":6,"rows_kept":5,"cut":false,"hidden":false,"merged":[[2,1,2,5]]}
[]
[]
[null,{"$f":"RIGHT(CELL(\"nomfichier\",A1),16)","v":"MOI.01.PREV.L010"}]
[]
[null,"Matricule","Nom","Prénom","Formé","AQA "]

{"sheet":"MOI.01.PREV.L012","index":22,"n_rows":5,"n_cols":6,"rows_kept":5,"cut":false,"hidden":false,"merged":[[2,1,2,5]]}
[]
[]
[null,{"$f":"RIGHT(CELL(\"nomfichier\",A1),16)","v":"MOI.01.PREV.L012"}]
[]
[null,"Matricule","Nom","Prénom","Formé","AQA "]

{"sheet":"MOI.01.PREV.L013","index":23,"n_rows":5,"n_cols":6,"rows_kept":5,"cut":false,"hidden":false,"merged":[[2,1,2,5]]}
[]
[]
[null,{"$f":"RIGHT(CELL(\"nomfichier\",A1),16)","v":"MOI.01.PREV.L013"}]
[]
[null,"Matricule","Nom","Prénom","Formé","AQA "]

{"sheet":"MOI.01.PREV.L014","index":24,"n_rows":5,"n_cols":6,"rows_kept":5,"cut":false,"hidden":false,"merged":[[2,1,2,5]]}
[]
[]
[null,{"$f":"RIGHT(CELL(\"nomfichier\",A1),16)","v":"MOI.01.PREV.L014"}]
[]
[null,"Matricule","Nom","Prénom","Formé","AQA "]

{"sheet":"MOI.01.PREV.L015","index":25,"n_rows":5,"n_cols":6,"rows_kept":5,"cut":false,"hidden":false,"merged":[[2,1,2,5]]}
[]
[]
[null,{"$f":"RIGHT(CELL(\"nomfichier\",A1),16)","v":"MOI.01.PREV.L015"}]
[]
[null,"Matricule","Nom","Prénom","Formé","AQA "]

{"sheet":"MOI.01.PREV.L016","index":26,"n_rows":5,"n_cols":6,"rows_kept":5,"cut":false,"hidden":false,"merged":[[2,1,2,5]]}
[]
[]
[null,{"$f":"RIGHT(CELL(\"nomfichier\",A1),16)","v":"MOI.01.PREV.L016"}]
[]
[null,"Matricule","Nom","Prénom","Formé","AQA "]

{"sheet":"MOI.01.PREV.L017","index":27,"n_rows":5,"n_cols":6,"rows_kept":5,"cut":false,"hidden":false,"merged":[[2,1,2,5]]}
[]
[]
[null,{"$f":"RIGHT(CELL(\"nomfichier\",A1),16)","v":"MOI.01.PREV.L017"}]
[]
[null,"Matricule","Nom","Prénom","Formé","AQA "]

{"sheet":"MOI.01.PREV.L018","index":28,"n_rows":5,"n_cols":6,"rows_kept":5,"cut":false,"hidden":false,"merged":[[2,1,2,5]]}
[]
[]
[null,{"$f":"RIGHT(CELL(\"nomfichier\",A1),16)","v":"MOI.01.PREV.L018"}]
[]
[null,"Matricule","Nom","Prénom","Formé","AQA "]

{"sheet":"MOI.01.PREV.L019","index":29,"n_rows":5,"n_cols":6,"rows_kept":5,"cut":false,"hidden":false,"merged":[[2,1,2,5]]}
[]
[]
[null,{"$f":"RIGHT(CELL(\"nomfichier\",A1),16)","v":"MOI.01.PREV.L019"}]
[]
[null,"Matricule","Nom","Prénom","Formé","AQA "]